Cogmind - Beta 16 @@@ ROGUE MODE // 2026.02.09 @ 18:39:33 Player: tritri Result: Destroyed by D-53 Grenadier with Mini Grenade Launcher Performance ------------- Evolutions (0) 0 Regions Visited (2) 400 Robots Destroyed (12) 60 Value Destroyed (152) 152 Prototype IDs (0) 0 Alien Tech Used (0) 0 Bonus (60) 60 TOTAL SCORE: 672 Bonus ------- Follower Combat Kills 60 Cogmind --------- Core Integrity 0/250 Matter 283/300 Energy 100/100 System Corruption 0% Temperature Cool (0) Movement Core (200) Ox3 Location -10/Mines Parts ------- > --- POWER (1) -------- (None) > --- PROPULSION (2) --- (None) > --- UTILITY (2) ------ Medium Storage Unit Core Shielding > --- WEAPON (2) ------- (None) > --- INVENTORY (10) --- Ion Engine Aluminum Leg Wheel Flight Unit Flight Unit Flight Unit Transport Network Coupler Small Laser Beam Cannon Light Assault Rifle Peak State ------------ > --- POWER ------------ Light Ion Engine > --- PROPULSION ------- Aluminum Leg Aluminum Leg > --- UTILITY ---------- Medium Storage Unit Core Shielding > --- WEAPON ----------- Light Assault Rifle Light Assault Rifle > --- INVENTORY -------- Ion Engine Aluminum Leg Wheel Flight Unit Flight Unit Flight Unit Transport Network Coupler Small Laser Small Laser Grenade Launcher [Rating: 8] Favorites ----------- Power Light Ion Engine Engine Light Ion Engine Propulsion Aluminum Leg Leg Aluminum Leg Wheel Wheel Utility Core Shielding Storage Medium Storage Unit Protection Core Shielding Weapon Light Assault Rifle Energy Gun Small Laser Ballistic Gun Light Assault Rifle Launcher Grenade Launcher Build | -11 -10 -10 ------- Run | Yrd Mat Min Slots Evolved . | . . . Power . | . . . Propulsion . | . . . Utility . | . . . Weapon . | . . . Parts Attached 15 | 7 7 1 Power 2 | 1 1 . Engine 2 | 1 1 . Core . | . . . Reactor . | . . . Propulsion 5 | 3 2 . Treads . | . . . Leg 4 | 2 2 . Wheel 1 | 1 . . Hover . | . . . Flight . | . . . Utility 3 | 1 2 . Device . | . . . Storage 2 | 1 1 . Processor . | . . . Hackware . | . . . Protection 1 | . 1 . Artifact . | . . . Weapon 5 | 2 2 1 Energy Gun 1 | 1 . . Energy Cannon . | . . . Ballistic Gun 3 | 1 2 . Ballistic Cannon . | . . . Launcher 1 | . . 1 Special Weapon . | . . . Impact Weapon . | . . . Slashing Weapon . | . . . Piercing Weapon . | . . . Special Melee Weapon . | . . . Unidentified Prototypes . | . . . Parts Lost 5 | . . 5 Power 1 | . . 1 Propulsion 2 | . . 2 Utility . | . . . Weapon 2 | . . 2 Highest Loss Streak 5 | . . 5 To Critical Strikes . | . . . Average Backups 8 | 1 8 10 Power . | . 1 1 Propulsion 4 | . 4 5 Utility . | . . 1 Weapon 2 | . 2 3 Tool/Special . | . . . Unused Backups 7 | . . 7 Power 1 | . . 1 Propulsion 3 | . . 3 Utility 1 | . . 1 Weapon 2 | . . 2 Tool/Special . | . . . Average Slot Usage (%) 94 | . 93 99 Engine 14 | . 14 14 Leg 28 | . 28 28 Storage 14 | . 14 14 Protection 9 | . 8 14 Ballistic Gun 27 | . 27 27 Peak Build Rating 8 | 6 8 8 Average Rating 6 | 4 6 7 On Entrance 4 | . 6 8 Avg Prop Armor Cover (%) 10 | 12 9 . Naked Turns . | . . . Heaviest Build 16 | 10 16 16 Greatest Support 20 | 10 20 20 Greatest Overweight (x) 3 | . . 3 Average Overweight (x) . | . . . Largest Inventory Capacity 10 | 8 10 10 Average Capacity 8 | 6 8 10 Most Carried 10 | 3 10 10 Average Carried 8 | 1 8 9 Final Capacity 10 | 8 10 10 Final Carried 10 | 3 10 10 Class Distribution -------------------- 100% | Mutant Dominant Class ---------------- Mutant | -10/Materials Mutant | -10/Mines Resources | -11 -10 -10 ----------- Run | Yrd Mat Min Matter Collected 429 | 216 211 2 Remotely . | . . . Salvage Created 279 | . 279 . Parts 26 | . 26 . Haulers Intercepted 2 | . 2 . Recyclers Shooed . | . . . Parts Field Recycled . | . . . Retrieved Matter . | . . . Parts Self-Destructed . | . . . Prevented . | . . . Parts Restored . | . . . Kills | -11 -10 -10 ------- Run | Yrd Mat Min Combat Hostiles Destroyed 10 | . 10 . Guns 10 | . 10 . Classes Destroyed 3 | . 3 . Hauler 2 | . 2 . Swarmer 8 | . 8 . Grunt 2 | . 2 . Best Kill Streak 3 | . 3 . Combat Bots Only 3 | . 3 . Max Kills in Single Turn 2 | . 2 . Gunslinging 1 | . 1 . Exploded . | . . . Melee . | . . . Uniques/NPCs Destroyed . | . . . Combat | -11 -10 -10 -------- Run | Yrd Mat Min Hostile Shots Fired 67 | . 52 15 Missed 21 | . 18 3 Hits 46 | . 34 12 Projectile 46 | . 34 12 AOE 15 | . . 15 Damage Taken 866 | . 308 558 Core 268 | . 63 205 Absorbed by Shields . | . . . Redirected to Shielding 44 | . 6 38 Core Remaining (%) 100 | 100 . . Volleys Fired 49 | . 45 4 Largest 2 | . 2 2 Hottest 60 | . 60 50 Shots Fired 97 | . 90 7 Gun 94 | . 90 4 Cannon . | . . . Launcher 3 | . . 3 Special . | . . . Kinetic 91 | . 87 4 Thermal 3 | . 3 . Explosive 3 | . . 3 Electromagnetic . | . . . Robot Hit Streak 7 | . 7 7 Robot Miss Streak 3 | . 3 2 Penetration Max . | . . . Secondary Targets 1 | . 1 . Max Gunslinging Chain 1 | . 1 . Shots Hit Robots 63 | . 59 4 Core Hits 25 | . 19 6 Critical Kills . | . . . Critical Parts Destroyed 1 | . 1 . Critical Strikes 1 | . 1 . Destroy 1 | . 1 . Melee Attacks . | . . . Impact . | . . . Slashing . | . . . Piercing . | . . . Sneak Attacks . | . . . Combat Hostiles . | . . . Follow-up Attacks . | . . . Damage Inflicted 584 | . 485 99 Guns 508 | . 485 23 Cannons . | . . . Explosions 76 | . . 76 Melee . | . . . Ramming . | . . . Kinetic 477 | . 454 23 Thermal 31 | . 31 . Explosive 76 | . . 76 Electromagnetic . | . . . Impact . | . . . Slashing . | . . . Piercing . | . . . Highest Corruption . | . . . Average Corruption . | . . . Corruption Purged . | . . . Corruption Blocked . | . . . Overload Shots . | . . . Overflow Damage . | . . . Projectiles . | . . . Explosions . | . . . Melee . | . . . Knockbacks . | . . . Impact . | . . . Kinetic . | . . . Secondary . | . . . Self-Inflicted Damage . | . . . Shots . | . . . Rammed . | . . . Targets Rammed . | . . . Kicked . | . . . Crushed . | . . . Highest Temperature 20 | . 20 10 Average Temperature 9 | . 10 7 Received Heat Transfer 90 | . 90 . Siege Activations . | . . . Martial Activations . | . . . Shielding Activations . | . . . Robots Disrupted . | . . . Combat Hostiles . | . . . Robots Corrupted . | . . . Combat Hostiles . | . . . Parts Fried . | . . . Impact Corruptions . | . . . Robots Melted . | . . . Combat Hostiles . | . . . Parts Melted . | . . . Heat Transferred 75 | . 75 . Parts Sabotaged . | . . . Parts Stolen . | . . . Parts Stripped . | . . . Power Chain Reactions . | . . . Alert | -11 -10 -10 ------- Run | Yrd Mat Min Maximum Alert Level . | . . . Low Security (%) 100 | 100 100 100 Level 1 . | . . . Level 2 . | . . . Level 3 . | . . . Level 4 . | . . . Level 5 . | . . . High Security . | . . . Max Security . | . . . Peak Influence 115 | . 115 36 Initial . | . . . Average 23 | . 30 7 Influence Increases 360 | . 289 71 Destroy 0b10 Robot/C 240 | . 200 40 Destroy 0b10 Robot/NC 10 | . 10 . Destroy Leader 44 | . 34 10 Allied During Kill 6 | . . 6 Destroy Structure 15 | . . 15 Lose Combat Pursuer 45 | . 45 . Influence Decreases 360 | . 289 71 Time Decay 345 | . 289 56 Lost Part 7 | . . 7 Lost Ally 8 | . . 8 Squads Dispatched 3 | . 3 . Investigation 2 | . 2 . Extermination . | . . . Reinforcement 1 | . 1 . Assault . | . . . Garrison . | . . . Intercept . | . . . Searches Triggered . | . . . Construction Impeded . | . . . Haulers Reinforced . | . . . Active Scanning Responses . | . . . Cargo Convoy Interrupts . | . . . Stealth | -11 -10 -10 --------- Run | Yrd Mat Min Distress Signals 2 | . 2 . Communications Jammed . | . . . Distress Signals . | . . . Times Spotted 34 | . 29 5 Peak Tracking Total 5 | . 5 2 Tactical Retreats 1 | . 1 . Traps | -11 -10 -10 ------- Run | Yrd Mat Min Traps Triggered 1 | . 1 . Indirectly . | . . . Trap Hack Attempts . | . . . Triggered . | . . . Disarmed . | . . . Reprogrammed . | . . . Reused . | . . . Traps Extracted . | . . . Installed . | . . . Triggered . | . . . Machines | -11 -10 -10 ---------- Run | Yrd Mat Min Machines Disabled . | . . . Max in Single Turn . | . . . Machines Repaired . | . . . Machines Dismantled . | . . . Machines Sabotaged . | . . . Overloaded Fab Kills . | . . . Hacking | -11 -10 -10 --------- Run | Yrd Mat Min Machines Accessed 1 | . 1 . Terminals 1 | . 1 . Fabricators . | . . . Repair Stations . | . . . Recycling Units . | . . . Scanalyzers . | . . . Garrison Access . | . . . Total Hacks 2 | . 2 . Successful . | . . . Failed 2 | . 2 . Catastrophic . | . . . Database Lockouts . | . . . Manual 2 | . 2 . Terminals 2 | . 2 . Fabricators . | . . . Repair Stations . | . . . Recycling Units . | . . . Scanalyzers . | . . . Garrison Access . | . . . Terminal Hacks . | . . . Fabricator Hacks . | . . . Repair Station Hacks . | . . . Recycling Unit Hacks . | . . . Scanalyzer . | . . . Garrison Access Hacks . | . . . Unauthorized Hacks . | . . . Terminals . | . . . Fabricators . | . . . Repair Stations . | . . . Recycling Units . | . . . Scanalyzers . | . . . Garrison Access . | . . . Data Cores Recovered . | . . . Used . | . . . Hacking Detections 1 | . 1 . Full Trace Events 1 | . 1 . Feedback Events . | . . . Feedback Blocked . | . . . Robot Schematics Acquired . | . . . Robots Built . | . . . Authchips . | . . . Time . | . . . Total Robot Build Rating . | . . . Part Schematics Acquired . | . . . Parts Built . | . . . Authchips . | . . . Time . | . . . Total Part Build Rating . | . . . Part Studies Acquired . | . . . Parts Repaired . | . . . Time . | . . . Parts Recycled . | . . . Recycled Matter . | . . . Retrieved Matter . | . . . Retrieved Components . | . . . Parts Scanalyzed . | . . . Part Schematics Acquired . | . . . Parts Damaged . | . . . Bothacking | -11 -10 -10 ------------ Run | Yrd Mat Min Used RIF Installer . | . . . Robots Hacked . | . . . Non-combat . | . . . Combat . | . . . Robot Hacks Applied . | . . . Relay Couplers Released . | . . . Fabnet Peak Effective % . | . . . Robots Rewired . | . . . Allies Hacked . | . . . Hacks Repelled . | . . . Allies | -11 -10 -10 -------- Run | Yrd Mat Min Total Allies 2 | . . 2 Largest Group 2 | . . 2 Highest-Rated Group 39 | . . 39 Highest-Rated Ally 31 | . . 31 Total Orders . | . . . Ally Attacks 14 | . . 14 Total Damage 189 | . . 189 Kills 2 | . . 2 Allies Corrupted . | . . . Allies Melted . | . . . Intel | -11 -10 -10 ------- Run | Yrd Mat Min Active Infowar (turns) . | . . . Robot Analysis Total . | . . . Derelict Logs Recovered 1 | . . 1 Drone Launches . | . . . Drone Recoveries . | . . . Exploration | -11 -10 -10 ------------- Run | Yrd Mat Min Turns Passed 1337 | 78 976 283 Spaces Moved 984 | 63 698 223 Core 11 | 9 . 2 Treads . | . . . Legs 963 | 44 698 221 Wheels 10 | 10 . . Hover . | . . . Flight . | . . . Fastest Speed 50 | 50 120 120 Average Speed 119 | 103 120 121 Slowest Speed 200 | 120 120 200 Overloaded Moves . | . . . Propulsion Burnouts . | . . . Robots Hopped . | . . . Potential Cave-ins . | . . . Cave-ins Triggered . | . . . Exploration Rate (%) 43 | 4 82 45 Regions Visited 2 Branch Regions 1 Pre-discovered Areas . | . . . Known Exits Taken . | . . . Unknown Exits Taken 2 | 1 1 . Scrap Searched 1 | . . 1 Spaces Dug . | . . . Terrain Destroyed 20 | . . 20 Melee . | . . . Projectile . | . . . AOE 20 | . . 20 Terrain Rammed . | . . . Walls Destroyed . | . . . Machines Disabled . | . . . Actions | -11 -10 -10 --------- Run | Yrd Mat Min Total 1066 | 72 764 230 Wait 5 | . 5 . Move 982 | 62 697 223 Hop . | . . . Pick Up 9 | 2 6 1 Fast Attach 8 | 7 1 . Attach . | . . . Detach 1 | 1 . . Swap 7 | . 6 1 Drop 5 | . 4 1 Fire 49 | . 45 4 Melee . | . . . Ram . | . . . Kick . | . . . Crush . | . . . Escape Stasis . | . . . Rewire . | . . . Trap . | . . . Miscellaneous . | . . . Route ------- -11/Scrapyard -10/Materials (discovered 3 exits: [*Mat x2] / [*Min]) -10/Mines (discovered 1 exit: [*Mat]) History --------- Turn | Location | Event 11 | -11/Scrapyard | Discovered new exit (range 16) 79 | -11/Scrapyard | Entered Materials 217 | -10/Materials | Discovered new exit (range 16) 309 | -10/Materials | Build established: Mutant 791 | -10/Materials | Discovered new exit (range 15) 990 | -10/Materials | Discovered new exit (range 12) 1055 | -10/Materials | Entered Mines 1315 | -10/Mines | Assembled infested the area 1329 | -10/Mines | Discovered new exit (range 14) 1331 | -10/Mines | Core integrity fell below 50% 1335 | -10/Mines | Core integrity fell below 20% 1338 | -10/Mines | Destroyed by D-53 Grenadier with Mini Grenade Launcher Last Messages --------------- payload. 01322_ D-53 Grenadier unfolds itself. 01326_ I9-WTT(z) destroyed. 01327_ U-05 Engineer lays Concrete. 01328_ The unstable cave ceiling collapses. 01328_ U-05 Engineer builds a Wall. 01328_ Lgt. Assault Rifle destroyed. 01328_ K-01 Serf destroyed. 01329_ 0K-V5X(g) destroyed. 01329_ EXIT=FOUND 01331_ Aluminum Leg destroyed. 01331_ Grenade Launcher destroyed. 01331_ Lgt. Ion Engine destroyed. 01332_ The unstable cave ceiling collapses. 01332_ U-05 Engineer builds a Wall. 01333_ D-53 Grenadier destroyed. 01334_ The unstable cave ceiling collapses. 01334_ Aluminum Leg destroyed. 01336_ U-05 Engineer builds a Wall. 01338_ The unstable cave ceiling collapses. Map ----- +----------------------------------------------------+ | ???????????????????????## ##???# ##???? | | ???????????????????????# ##### #????? | | ???????????????????????# ## #????? | | ????????????????????????# #????? | | ?????????????????????????# #????? | | ????????????????????????## ##????? | | ???????????????????????## #####?????? | | ??????????????????? ???# ##?????????? | | ????????????????? ???# ##??????????? | | ??????????????# ##?## ##???????????? | | ????????????? #?### #????????????? | | ??????????????< #???# #????????????? | | ?????????????? #???# #????????????? | | ??????????????? #???# #????????????? | | ???????????????? #???# #????????????? | | ???????????????## ???# #????????????? | | ???????????????# ##### #????????????? | | ????????????????# %d # ## ##???????????? | | ???????????????## =%u #???????????? | | ??????????????## ## #???????????? | | ??????????????# #???????????? | | ??????????????# #???????????? | | ??????????????# #???????????? | | ??????????????# ##???????????? | | ??????????????# ###????????????? | | ??????????????## @ # ##??????????????? | | ???????????????# ##???????????????? | | ???????????????# ###????????????????? | | ???????????????# # ###??????????????????? | | ??????????????? ????????????????????? | | ??????????????#########???????????????????? | | ??????????????????????????????????????????? | | ??????????????????????????????????????????? | | ??????????????????????????????????????????? | | ??????????????????????????????????????????? | | ??????????????????????????????????????????? | | ??????????????????????????????????????????? | | ??????????????????????????????????????????? | | ??????????????????????????????????????????? | | ??????????????????????????????????????????? | | ??????????????????????????????????????????? | | ??????????????????????????????????????????? | | ??????????????????????????????????????????? | | ??????????????????????????????????????????? | | ??????????????????????????????????????????? | | | | | | | | | | | +----------------------------------------------------+ Best States ------------- Heat Dissipation 25 Energy Generation 10 Energy Capacity 125 Matter Stores 300 Matter Capacity 300 Sight Range 16 Terrain Scan Density 10 Core Shielding 20 Evasion (%) 55 Item Schematics ----------------- None Robot Schematics ------------------ None Fabricated ------------ Nothing Repaired ---------- Nothing Studied --------- None Alien Tech Used ----------------- None Achievements -------------- None Challenges ------------ None Game ------ Seed CobblerTiamatArchive Manual? 0 Play Time 00:10:28 Cumulative 2.1 hours Start 2026.02.09 @ 18:30:44 End 2026.02.09 @ 18:39:33 Sessions 1 Manual Loads 0 Difficulty Rogue Special Mode None Game No. 7 Rogue 7 Adventurer 0 Explorer 0 Win Type - Total 0 Types 0/0/0/0/0/0/0/0/0/0 Lore% 2 Gallery% 4 Achievement% 14 Wizard Run 0 Options --------- Layout 1 ASCII 0 Keyboard 1 Movement Vi Keybinds 0 Fullscreen 1 Font 24/Smallcaps Map View 50x35 Zoom Use 0% Tactical HUD 1 Map Filters NONE Filters NONE Steam 1 RUN: d4b5f451-af48-4366-a4f5-4b2b35e90788